[Event "FIDE WCCC Open-08 2024"]
[Site "Montesilvano"]
[Date "2024.11.26"]
[Round "11.49"]
[White "Reclik, Jakub"]
[Black "Thomas, Robert K"]
[Result "1/2-1/2"]
[ECO "B28"]
[WhiteElo "1458"]
[BlackElo "2166"]
[Annotator "RC"]
[PlyCount "122"]
[EventDate "2024.11.18"]
[EventType "swiss"]
[EventCountry "ITA"]
[SourceTitle "playchess.com"]
[Source "ChessBase"]
[SourceQuality "1"]
[TimeControl "5400+30"]

1. e4 {[%emt 0:00:01]} c5 {[%emt 0:00:03]} 2. Nf3 {[%emt 0:00:07]} a6 {[%emt 0:00:05]} 3. c4 {[%emt 0:00:21]} Nc6 {[%emt 0:00:17]} 4. d4 {[%emt 0:00:23]} cxd4 {[%emt 0:00:30]} 5. Nxd4 {[%emt 0:00:13]} Nf6 {[%emt 0:00:46]} 6. Nc3 {[%emt 0:00:44]} g6 {[%emt 0:01:47]} 7. Be3 {[%emt 0:01:52]} Bg7 {[%emt 0:01:33]} 8. Nxc6 {[%emt 0:03:15]} bxc6 {[%emt 0:01:21]} 9. Be2 {[%emt 0:00:44]} d6 {[%emt 1:28:38]} 10. O-O {[%emt 0:04:57]} O-O {[%emt 0:00:00]} 11. Qd2 {[%emt 0:02:05]} Bg4 {[%emt 0:00:00]} 12. f3 {[%emt 0:05:26]} Be6 {[%emt 0:00:00]} 13. Rac1 {[%emt 0:08:05]} d5 {[%emt 0:00:00]} 14. cxd5 {[%emt 0:00:54]} cxd5 {[%emt 0:00:00]} 15. exd5 {[%emt 0:00:17]} Nxd5 {[%emt 0:00:00]} 16. Nxd5 {[%emt 0:00:36]} Qxd5 {[%emt 0:00:00]} 17. Qxd5 {[%emt 0:00:13]} Bxd5 {[%emt 0:00:00]} 18. b3 {[%emt 0:00:11]} a5 {[%emt 0:00:00]} 19. Rfd1 {[%emt 0:00:55]} Be6 {[%emt 0:00:00]} 20. Bc4 {[%emt 0:00:20]} Bxc4 {[%emt 0:00:00]} 21. Rxc4 {[%emt 0:00:09]} Rfc8 {[%emt 0:00:00]} 22. Rdc1 {[%emt 0:00:48]} Rd8 {[%emt 0:00:00]} 23. Rc7 {[%emt 0:00:21]} e6 {[%emt 0:00:00]} 24. R1c2 {[%emt 0:02:44]} Bd4 {[%emt 0:00:00]} 25. Bxd4 {[%emt 0:00:21]} Rxd4 {[%emt 0:00:00]} 26. Rc8+ {[%emt 1:07:28]} Rxc8 {[%emt 0:00:00]} 27. Rxc8+ {[%emt 0:00:00]} Kg7 {[%emt 0:00:00]} 28. Rc2 {[%emt 0:00:00]} Kf6 {[%emt 0:00:00]} 29. Kf2 {[%emt 0:00:00]} Rh4 {[%emt 0:00:00]} 30. Kg3 {[%emt 0:00:00]} Rd4 {[%emt 0:00:00]} 31. Rc5 {[%emt 0:00:00]} a4 {[%emt 0:00:00]} 32. bxa4 {[%emt 0:00:00]} Rxa4 {[%emt 0:11:30]} 33. Rc2 {[%emt 0:00:00]} Ra3 {[%emt 0:00:00]} 34. Re2 {[%emt 0:00:00]} Ra4 {[%emt 0:00:00]} 35. Kf2 {[%emt 0:00:00]} Ra3 {[%emt 0:00:00]} 36. g4 {[%emt 0:00:00]} Kg5 {[%emt 0:00:00]} 37. Kg3 {[%emt 0:00:00]} h5 {[%emt 0:00:00]} 38. h4+ {[%emt 0:00:00]} Kf6 {[%emt 0:00:00]} 39. g5+ {[%emt 0:00:00]} Kf5 {[%emt 0:00:00]} 40. Re4 {[%emt 0:00:00]} e5 {[%emt 0:00:00]} 41. Re2 {[%emt 0:00:00]} f6 {[%emt 0:00:00]} 42. gxf6 {[%emt 0:00:00]} Kxf6 {[%emt 0:00:00]} 43. Rf2 {[%emt 0:00:00]} Kf5 {[%emt 0:00:00]} 44. Re2 {[%emt 0:00:00]} Ra4 {[%emt 0:00:00]} 45. Rf2 {[%emt 0:00:00]} g5 {[%emt 0:00:00]} 46. hxg5 {[%emt 0:00:00]} Kxg5 {[%emt 0:00:00]} 47. Kh3 {[%emt 0:00:00]} Kf4 {[%emt 0:00:00]} 48. Kg2 {[%emt 0:00:00]} Ke3 {[%emt 0:00:00]} 49. Kg3 {[%emt 0:00:00]} h4+ {[%emt 0:00:00]} 50. Kg2 {[%emt 0:00:00]} h3+ {[%emt 0:00:00]} 51. Kg3 {[%emt 0:00:00]} Ra3 {[%emt 0:00:00]} 52. Rh2 {[%emt 0:00:00]} e4 {[%emt 0:00:00]} 53. fxe4 {[%emt 0:00:00]} Kxe4+ {[%emt 0:00:00]} 54. Kg4 {[%emt 0:00:00]} Kd4 {[%emt 0:00:00]} 55. Rxh3 {[%emt 0:00:00]} Rxh3 {[%emt 0:00:00]} 56. Kxh3 {[%emt 0:00:00]} Kc3 {[%emt 0:00:00]} 57. Kg4 {[%emt 0:00:00]} Kb4 {[%emt 0:00:00]} 58. Kf4 {[%emt 0:00:00]} Ka3 {[%emt 0:00:00]} 59. Ke4 {[%emt 0:00:00]} Kb4 {[%emt 0:00:00]} 60. Kd3 {[%emt 0:00:00]} Ka3 {[%emt 0:00:00]} 61. Kc2 {[%emt 0:00:00]} Kxa2 {[%emt 0:00:00]} 1/2-1/2

[Event "FIDE WCCC Open-08 2024"]
[Site "Montesilvano"]
[Date "2024.11.26"]
[Round "11.52"]
[White "Hakobyan, Sos"]
[Black "Kuncoro, Harvey"]
[Result "1-0"]
[ECO "E30"]
[WhiteElo "1806"]
[BlackElo "1432"]
[Annotator "NA RC"]
[PlyCount "113"]
[EventDate "2024.11.18"]
[EventType "swiss"]
[EventCountry "ITA"]
[SourceTitle "playchess.com"]
[Source "ChessBase"]
[SourceQuality "1"]
[TimeControl "5400+30"]

1. d4 {[%emt 0:00:06]} Nf6 {[%emt 0:00:33]} 2. c4 {[%emt 0:00:14]} e6 {[%emt 0:00:07]} 3. Nc3 {[%emt 0:00:47]} Bb4 {[%emt 0:00:09]} 4. Bg5 {[%emt 0:00:59]} c5 {[%emt 0:00:10]} 5. Nf3 {[%emt 0:02:10]} Qa5 {[%emt 0:01:25]} 6. Bd2 {[%emt 0:01:42]} Qd8 {[%emt 0:02:26]} 7. a3 {[%emt 0:01:30]} Bxc3 {[%emt 0:00:33]} 8. Bxc3 {[%emt 0:00:19]} d5 {[%emt 0:02:12]} 9. e3 {[%emt 0:01:02]} b6 {[%emt 0:00:32]} 10. Bd3 {[%emt 0:01:30]} Ba6 {[%emt 0:00:27]} 11. Ne5 {[%emt 0:04:22]} O-O {[%emt 0:02:26]} 12. O-O {[%emt 0:02:15]} dxc4 {[%emt 0:04:18]} 13. Bxc4 {[%emt 0:01:45]} b5 {[%emt 0:09:00]} 14. Bd3 {[%emt 0:03:52]} c4 {[%emt 0:02:02]} 15. Bc2 {[%emt 0:01:29]} Bb7 {[%emt 0:01:57]} 16. a4 {[%emt 0:04:38]} Qd5 {[%emt 0:04:31]} 17. f3 {[%emt 0:03:49]} a6 {[%emt 0:08:09]} 18. Qd2 {[%emt 0:11:29]} Nbd7 {[%emt 0:00:45]} 19. e4 {[%emt 0:03:27]} Qd6 {[%emt 0:03:12]} 20. Bb4 {[%emt 0:02:11]} Qc7 {[%emt 0:00:22]} 21. Nxd7 {[%emt 0:00:54]} Qxd7 {[%emt 0:00:21]} 22. Bxf8 {[%emt 0:00:12]} Rxf8 {[%emt 0:00:03]} 23. axb5 {[%emt 0:02:12]} axb5 {[%emt 0:56:20]} 24. Rfd1 {[%emt 0:01:32]} Qe7 {[%emt 0:00:00]} 25. Qa5 {[%emt 0:02:07]} b4 {[%emt 0:00:00]} 26. b3 {[%emt 0:02:05]} c3 {[%emt 0:00:00]} 27. Ra4 {[%emt 0:01:15]} e5 {[%emt 0:00:00]} 28. d5 {[%emt 0:01:56]} Qd6 {[%emt 0:00:00]} 29. Qxb4 {[%emt 0:01:13]} Qxb4 {[%emt 0:00:00]} 30. Rxb4 {[%emt 0:00:23]} Ba6 {[%emt 0:00:00]} 31. Bd3 {[%emt 0:01:21]} Bxd3 {[%emt 0:00:00]} 32. Rxd3 {[%emt 0:00:17]} c2 {[%emt 0:00:00]} 33. Rc3 {[%emt 0:01:03]} Nxd5 {[%emt 0:00:00]} 34. exd5 {[%emt 0:00:20]} f5 {[%emt 0:00:00]} 35. Rxc2 {[%emt 0:00:09]} Ra8 {[%emt 0:00:00]} 36. Kf2 {[%emt 0:00:25]} g5 {[%emt 0:00:00]} 37. Rb7 {[%emt 0:42:00]} h5 {[%emt 0:00:00]} 38. Re7 {[%emt 0:00:00]} e4 {[%emt 0:00:00]} 39. fxe4 {[%emt 0:00:00]} fxe4 {[%emt 0:00:00]} 40. Rxe4 {[%emt 0:00:00]} Rf8+ {[%emt 0:00:00]} 41. Ke2 {[%emt 0:00:00]} Rf5 {[%emt 0:00:00]} 42. Rc7 {[%emt 0:00:00]} g4 {[%emt 0:00:00]} 43. Re8+ {[%emt 0:00:00]} Rf8 {[%emt 0:00:00]} 44. Rxf8+ {[%emt 0:00:00]} Kxf8 {[%emt 0:00:00]} 45. d6 {[%emt 0:00:00]} Ke8 {[%emt 0:00:00]} 46. Rh7 {[%emt 0:00:00]} g3 {[%emt 0:00:00]} 47. hxg3 {[%emt 0:00:00]} Kd8 {[%emt 0:00:00]} 48. d7 {[%emt 0:00:00]} Kc7 {[%emt 0:00:00]} 49. d8=Q+ {[%emt 0:00:00]} Kxd8 {[%emt 0:13:00]} 50. Ke3 {[%emt 0:00:00]} Ke8 {[%emt 0:00:00]} 51. Ke4 {[%emt 0:00:00]} Kf8 {[%emt 0:00:00]} 52. Kf5 {[%emt 0:00:00]} Kg8 {[%emt 0:00:00]} 53. Rb7 {[%emt 0:00:00]} h4 {[%emt 0:00:00]} 54. Kf6 {[%emt 0:00:00]} hxg3 {[%emt 0:00:00]} 55. Ra7 {[%emt 0:00:00]} Kh8 {[%emt 0:00:00]} 56. Kg6 {[%emt 0:00:00]} Kg8 {[%emt 0:00:00]} 57. Ra8# {[%emt 0:00:00]} 1-0